fUST/lending_fUST_20250206
["ID","MTS","AMOUNT","RATE_DAILY","PERIOD"]
[351888398,1738829443149,-2297.0,0.00014246,2]
[351888400,1738829443158,-500.0,0.00014246,2]
[351888403,1738829443171,-500.0,0.00014246,2]
[351888405,1738829443181,-500.0,0.00014246,2]
[351888407,1738829443190,-500.0,0.00014246,2]
[351888409,1738829443199,-500.0,0.00014246,2]
[351888411,1738829443210,-500.0,0.00014246,2]
[351888413,1738829443220,-1439.29,0.00014246,2]
[351888415,1738829443229,-894.98,0.00014246,2]
[351888417,1738829443239,-500.0,0.00014246,2]
[351888420,1738829443248,-500.0,0.00014246,2]
[351888422,1738829443258,-500.21,0.00014246,2]
[351888424,1738829443267,-500.0,0.00014246,2]
[351888426,1738829443276,-500.0,0.00014246,2]
[351888428,1738829443286,-1475.98,0.00014246,2]
[351888430,1738829443296,-500.0,0.00014246,2]
[351888432,1738829443306,-624.13,0.00014246,2]
[351888434,1738829443316,-279.00637962,0.00014246,2]
[351888436,1738829443325,-500.0,0.00014246,2]
[351888438,1738829443335,-500.0,0.00014246,2]
[351888440,1738829443345,-500.0,0.00014246,2]
[351888442,1738829443355,-101.06079878,0.00014246,2]
[351888445,1738829443373,-398.93920122,0.00014246,2]
[351888447,1738829443383,-1008.94,0.00014246,2]
[351888450,1738829443394,-500.0,0.00014246,2]
[351888453,1738829443406,-500.0,0.00014246,2]
[351888456,1738829443418,-582.69,0.00014246,2]
[351888459,1738829443429,-642.11,0.00014246,2]
[351888461,1738829443439,-615.14,0.00014246,2]
[351888464,1738829443452,-500.0,0.00014246,2]
[351888466,1738829443464,-500.0,0.00014246,2]
[351888468,1738829443474,-500.0,0.00014246,2]
[351888470,1738829443485,-506.0,0.00014246,2]
[351888472,1738829443494,-500.0,0.00014246,2]
[351888474,1738829443504,-580.13711305,0.00014246,2]
[351888476,1738829443513,-40396.99,0.00014246,2]
[351888478,1738829443523,-500.0,0.00014246,2]
[351888480,1738829443532,-500.0,0.00014246,2]
[351888482,1738829443542,-500.0,0.00014246,2]
[351888484,1738829443552,-816.22,0.00014246,2]
[351888486,1738829443561,-2104.2,0.00014246,2]
[351888488,1738829443570,-1366.82,0.00014246,2]
[351888490,1738829443580,-500.0,0.00014246,2]
[351888492,1738829443590,-884.94,0.00014246,2]
[351888494,1738829443600,-500.0,0.00014246,2]
[351888496,1738829443609,-1810.54,0.00014246,2]
[351888498,1738829443618,-739.75,0.00014246,2]
[351888500,1738829443628,-13594.38,0.00014246,2]
[351888502,1738829443638,-500.0,0.00014246,2]
[351888504,1738829443648,-500.0,0.00014246,2]
[351888506,1738829443658,-748.51,0.00014246,2]
[351888508,1738829443668,-4728.87,0.00014246,2]
[351888510,1738829443678,-500.0,0.00014246,2]
[351888512,1738829443688,-536.38,0.00014246,2]
[351888514,1738829443697,-2020.44,0.00014246,2]
[351888516,1738829443707,-319.07390484,0.00014246,2]
[351888518,1738829443717,-1108.58,0.00014246,2]
[351888520,1738829443726,-1982.95,0.00014246,2]
[351888522,1738829443736,-500.0,0.00014246,2]
[351888524,1738829443747,-500.0,0.00014246,2]
[351888526,1738829443757,-500.0,0.00014246,2]
[351888528,1738829443767,-1078.49,0.00014246,2]
[351888530,1738829443776,-500.0,0.00014246,2]
[351888532,1738829443786,-151.0,0.00014246,2]
[351888534,1738829443795,-500.0,0.00014246,2]
[351888536,1738829443806,-500.0,0.00014246,2]
[351888538,1738829443821,-151.0,0.00014246,2]
[351888540,1738829443831,-151.0,0.00014246,2]
[351888542,1738829443841,-849.11,0.00014246,2]
[351888544,1738829443853,-500.0,0.00014246,2]
[351888546,1738829443863,-151.0,0.00014246,2]
[351888548,1738829443872,-500.0,0.00014246,2]
[351888550,1738829443882,-151.0,0.00014246,2]
[351888553,1738829443892,-639.73,0.00014246,2]
[351888555,1738829443902,-151.0,0.00014246,2]
[351888557,1738829443912,-1559.78,0.00014246,2]
[351888559,1738829443921,-500.0,0.00014246,2]
[351888561,1738829443930,-151.0,0.00014246,2]
[351888563,1738829443940,-500.0,0.00014246,2]
[351888565,1738829443949,-500.0,0.00014246,2]
[351888567,1738829443959,-500.0,0.00014246,2]
[351888569,1738829443969,-518.24,0.00014246,2]
[351888571,1738829443978,-2119.09,0.00014246,2]
[351888573,1738829443988,-1245.44,0.00014246,2]
[351888575,1738829443998,-2895.79,0.00014246,2]
[351888577,1738829444008,-500.0,0.00014246,2]
[351888579,1738829444017,-500.0,0.00014246,2]
[351888582,1738829444027,-483.6855893,0.00014246,2]
[351888584,1738829444036,-151.0,0.00014246,2]
[351888587,1738829444046,-502.7,0.00014246,2]
[351888590,1738829444055,-500.0,0.00014246,2]
[351888592,1738829444065,-1591.18,0.00014246,2]
[351888594,1738829444075,-500.0,0.00014246,2]
[351888596,1738829444085,-500.0,0.00014246,2]
[351888598,1738829444094,-1417.8,0.00014246,2]
[351888600,1738829444104,-674.38,0.00014246,2]
[351888602,1738829444113,-9503.47,0.00014246,2]
[351888604,1738829444123,-3725.46,0.00014246,2]
[351888606,1738829444133,-500.0,0.00014246,2]
[351888608,1738829444142,-500.0,0.00014246,2]
[351888611,1738829444153,-674.74,0.00014246,2]
[351888613,1738829444162,-584.73,0.00014246,2]
[351888615,1738829444172,-3051.02,0.00014246,2]
[351888617,1738829444182,-500.0,0.00014246,2]
[351888619,1738829444192,-500.0,0.00014246,2]
[351888621,1738829444201,-1527.87,0.00014246,2]
[351888623,1738829444211,-199.453916,0.00014246,2]
[351888625,1738829444221,-151.0,0.00014246,2]
[351888627,1738829444231,-3039.69,0.00014246,2]
[351888629,1738829444240,-199.453916,0.00014246,2]
[351888631,1738829444249,-923.1,0.00014246,2]
[351888633,1738829444259,-151.0,0.00014246,2]
[351888635,1738829444268,-151.0,0.00014246,2]
[351888637,1738829444278,-727.07,0.00014246,2]
[351888639,1738829444288,-1375.37,0.00014246,2]
[351888641,1738829444298,-1655.27,0.00014246,2]
[351888643,1738829444308,-500.0,0.00014246,2]
[351888645,1738829444318,-500.0,0.00014246,2]
[351888647,1738829444328,-1331.89,0.00014246,2]
[351888649,1738829444337,-3392.67,0.00014246,2]
[351888651,1738829444347,-500.0,0.00014246,2]
[351888653,1738829444357,-500.0,0.00014246,2]
[351888655,1738829444366,-500.0,0.00014246,2]
[351888657,1738829444376,-2586.13,0.00014246,2]
[351888659,1738829444386,-525.71,0.00014246,2]
[351888661,1738829444396,-500.0,0.00014246,2]
[351888663,1738829444409,-754.85,0.00014246,2]
[351888665,1738829444419,-3468.24,0.00014246,2]
[351888681,1738829444567,-500.0,0.00014246,2]
[351888683,1738829444577,-17554.15,0.00014246,2]
[351888685,1738829444587,-151.0,0.00014246,2]
[351888687,1738829444596,-500.0,0.00014246,2]
[351888689,1738829444607,-576.67,0.00014246,2]
[351888691,1738829444616,-506.19836677,0.00014246,2]
[351888693,1738829444626,-1380.51,0.00014246,2]
[351888695,1738829444636,-151.0,0.00014246,2]
[351888697,1738829444646,-633.08,0.00014246,2]
[351888699,1738829444656,-1805.74,0.00014246,2]
[351888701,1738829444665,-151.0,0.00014246,2]
[351888702,1738829444675,-500.0,0.00014246,2]
[351888704,1738829444684,-500.0,0.00014246,2]
[351888706,1738829444694,-1125.48,0.00014246,2]
[351888708,1738829444703,-2440.89635023,0.00014283,2]
[351888710,1738829444712,-151.0,0.000143,2]
[351888712,1738829444722,-506.12498987,0.0001433,2]
[351888714,1738829444731,-1200.0,0.00014333,2]
[351888716,1738829444741,-500.205,0.00014333,2]
[351888718,1738829444751,-23059.12896331,0.00014383,2]
[351888720,1738829444760,-500.0,0.00014383,2]
[351888722,1738829444770,-500.0,0.00014383,2]
[351888724,1738829444780,-615.59,0.00014383,2]
[351888726,1738829444789,-586.05688182,0.00014383,2]
[351888728,1738829444799,-500.0,0.00014383,2]
[351888730,1738829444809,-500.0,0.00014383,2]
[351888732,1738829444819,-500.0,0.00014383,2]
[351888734,1738829444829,-500.0,0.00014383,2]
[351888736,1738829444839,-500.0,0.00014383,2]
[351888738,1738829444851,-291.29528004,0.00014383,2]
[351888740,1738829444860,-500.0,0.00014383,2]
[351888742,1738829444870,-176.65736661,0.00014383,2]
[351888744,1738829444880,-1208.91,0.00014383,2]
[351888746,1738829444889,-1176.36,0.00014383,2]
[351888748,1738829444899,-500.0,0.00014383,2]
[351888749,1738829444910,-657.32,0.00014383,2]
[351888751,1738829444920,-500.0,0.00014383,2]
[351888754,1738829444930,-465.8096695,0.00014383,2]
[351888756,1738829444940,-264.28579917,0.00014383,2]
[351888758,1738829444950,-500.0,0.00014383,2]
[351888760,1738829444959,-362.24221922,0.00014383,2]
[351888762,1738829444968,-500.0,0.00014383,2]
[351888763,1738829444977,-1439.29,0.00014383,2]
[351888765,1738829444987,-894.98,0.00014383,2]
[351888767,1738829444998,-151.0,0.00014383,2]
[351888770,1738829445008,-500.0,0.00014383,2]
[351888772,1738829445018,-500.0,0.00014383,2]
[351888773,1738829445027,-500.0,0.00014383,2]
[351888775,1738829445037,-500.0,0.00014383,2]
[351888777,1738829445047,-1475.98,0.00014383,2]
[351888780,1738829445056,-500.0,0.00014383,2]
[351888782,1738829445066,-624.13,0.00014383,2]
[351888783,1738829445075,-500.0,0.00014383,2]
[351888786,1738829445085,-500.0,0.00014383,2]
[351888788,1738829445095,-500.0,0.00014383,2]
[351888789,1738829445104,-500.0,0.00014383,2]
[351888791,1738829445113,-1008.94,0.00014383,2]
[351888793,1738829445122,-640.44296156,0.00014383,2]
[351888795,1738829445131,-500.0,0.00014383,2]
[351888797,1738829445141,-582.69,0.00014383,2]
[351888799,1738829445149,-642.11,0.00014383,2]
[351888801,1738829445159,-615.14,0.00014383,2]
[351888803,1738829445168,-151.0,0.00014383,2]
[351888805,1738829445177,-500.0,0.00014383,2]
[351888807,1738829445186,-500.0,0.00014383,2]
[351888809,1738829445195,-500.0,0.00014383,2]
[351888811,1738829445205,-151.0,0.00014383,2]
[351888813,1738829445214,-506.0,0.00014383,2]
[351888815,1738829445223,-152.968109,0.00014383,2]
[351888817,1738829445232,-500.0,0.00014383,2]
[351888819,1738829445241,-40396.99,0.00014383,2]
[351888821,1738829445250,-500.0,0.00014383,2]
[351888823,1738829445260,-500.0,0.00014383,2]
[351888825,1738829445269,-151.0,0.00014383,2]
[351888827,1738829445278,-500.0,0.00014383,2]
[351888829,1738829445287,-816.22,0.00014383,2]
[351888831,1738829445296,-2104.2,0.00014383,2]
[351888833,1738829445304,-1366.82,0.00014383,2]
[351888835,1738829445314,-500.0,0.00014383,2]
[351888837,1738829445324,-151.0,0.00014383,2]
[351888839,1738829445333,-884.94,0.00014383,2]
[351888841,1738829445342,-151.0,0.00014383,2]
[351888843,1738829445351,-1810.54,0.00014383,2]
[351888845,1738829445360,-151.0,0.00014383,2]
[351888847,1738829445370,-739.75,0.00014383,2]
[351888849,1738829445380,-13594.38,0.00014383,2]
[351888851,1738829445389,-500.0,0.00014383,2]
[351888853,1738829445398,-748.51,0.00014383,2]
[351888855,1738829445411,-4728.87,0.00014383,2]
[351888857,1738829445420,-500.0,0.00014383,2]
[351888859,1738829445430,-536.38,0.00014383,2]
[351888861,1738829445439,-151.0,0.00014383,2]
[351888863,1738829445448,-2020.44,0.00014383,2]
[351888865,1738829445458,-1108.58,0.00014383,2]
[351888867,1738829445468,-1982.95,0.00014383,2]
[351888869,1738829445477,-344.99068736,0.00014383,2]
[351888870,1738829445487,-500.0,0.00014383,2]
[351888872,1738829445496,-1078.49,0.00014383,2]
[351888874,1738829445505,-500.0,0.00014383,2]
[351888876,1738829445514,-500.0,0.00014383,2]
[351888878,1738829445523,-500.0,0.00014383,2]
[351888880,1738829445533,-849.11,0.00014383,2]
[351888882,1738829445542,-500.0,0.00014383,2]
[351888884,1738829445551,-500.0,0.00014383,2]
[351888886,1738829445561,-639.73,0.00014383,2]
[351888888,1738829445570,-1559.78,0.00014383,2]
[351888890,1738829445579,-500.0,0.00014383,2]
[351888892,1738829445588,-500.0,0.00014383,2]
[351888894,1738829445597,-500.0,0.00014383,2]
[351888896,1738829445607,-500.0,0.00014383,2]
[351888898,1738829445616,-518.24,0.00014383,2]
[351888900,1738829445625,-2119.09,0.00014383,2]
[351888902,1738829445635,-1245.44,0.00014383,2]
[351888904,1738829445644,-2895.79,0.00014383,2]
[351888906,1738829445653,-500.0,0.00014383,2]
[351888908,1738829445662,-167.35093382,0.00014383,2]
[351888910,1738829445671,-502.7,0.00014383,2]
[351888912,1738829445680,-500.0,0.00014383,2]
[351888914,1738829445690,-1591.18,0.00014383,2]
[351888916,1738829445699,-500.0,0.00014383,2]
[351888918,1738829445709,-519.23141477,0.00014383,2]
[351888920,1738829445719,-1417.8,0.00014383,2]
[351888922,1738829445728,-674.38,0.00014383,2]
[351888924,1738829445737,-9503.47,0.00014383,2]
[351888926,1738829445747,-3725.46,0.00014383,2]
[351888928,1738829445757,-500.0,0.00014383,2]
[351888930,1738829445766,-500.0,0.00014383,2]
[351888932,1738829445776,-674.74,0.00014383,2]
[351888934,1738829445785,-584.73,0.00014383,2]
[351888936,1738829445794,-3051.02,0.00014383,2]
[351888938,1738829445803,-583.77995965,0.00014383,2]
[351888940,1738829445813,-1527.87,0.00014383,2]
[351888942,1738829445822,-3039.69,0.00014383,2]
[351888944,1738829445831,-923.1,0.00014383,2]
[351888946,1738829445840,-151.0,0.00014383,2]
[351888948,1738829445850,-727.07,0.00014383,2]
[351888950,1738829445859,-1375.37,0.00014383,2]
[351888952,1738829445868,-1655.27,0.00014383,2]
[351888954,1738829445877,-500.0,0.00014383,2]
[351888956,1738829445887,-500.0,0.00014383,2]
[351888958,1738829445896,-1331.89,0.00014383,2]
[351888960,1738829445905,-3392.67,0.00014383,2]
[351888962,1738829445914,-500.0,0.00014383,2]
[351888964,1738829445924,-500.0,0.00014383,2]
[351888966,1738829445933,-500.0,0.00014383,2]
[351888968,1738829445943,-2586.13,0.00014383,2]
[351888970,1738829445952,-525.71,0.00014383,2]
[351888972,1738829445961,-500.0,0.00014383,2]
[351888974,1738829445970,-754.85,0.00014383,2]
[351888976,1738829445980,-3468.24,0.00014383,2]
[351888978,1738829445989,-500.0,0.00014383,2]
[351888980,1738829445999,-17554.15,0.00014383,2]
[351888982,1738829446009,-500.0,0.00014383,2]
[351888984,1738829446018,-576.67,0.00014383,2]
[351888986,1738829446027,-1380.51,0.00014383,2]
[351888988,1738829446036,-151.0,0.00014383,2]
[351888989,1738829446046,-151.0,0.00014383,2]
[351888991,1738829446055,-633.08,0.00014383,2]
[351888993,1738829446065,-1805.74,0.00014383,2]
[351888996,1738829446074,-151.0,0.00014383,2]
[351888999,1738829446084,-500.0,0.00014383,2]
[351889002,1738829446093,-500.0,0.00014383,2]
[351889004,1738829446102,-1125.48,0.00014383,2]
[351889008,1738829446111,-500.0,0.00014409,2]
[351889011,1738829446121,-163.0,0.00014451,2]
[351889013,1738829446130,-163.0,0.00014451,2]
[351889015,1738829446139,-163.0,0.00014451,2]
[351889017,1738829446148,-163.0,0.00014451,2]
[351889019,1738829446157,-163.0,0.00014451,2]
[351889021,1738829446166,-166.93,0.00014451,2]
[351889023,1738829446175,-151.0,0.00014451,2]
[351889025,1738829446184,-500.0,0.0001448,2]
[351889026,1738829446193,-507.99791894,0.0001448,2]
[351889028,1738829446203,-507.98663694,0.0001451,2]
[351889030,1738829446212,-154.0,0.00014519,2]
[351889032,1738829446222,-154.0,0.00014519,2]
[351889034,1738829446231,-154.0,0.00014519,2]
[351889037,1738829446241,-154.0,0.00014519,2]
[351889039,1738829446250,-154.0,0.00014519,2]
[351889042,1738829446261,-154.0,0.00014519,2]
[351889044,1738829446270,-154.0,0.00014519,2]
[351889047,1738829446279,-154.0,0.00014519,2]
[351889050,1738829446289,-154.0,0.00014519,2]
[351889053,1738829446299,-154.0,0.00014519,2]
[351889057,1738829446308,-154.0,0.00014519,2]
[351889060,1738829446318,-154.0,0.00014519,2]
[351889062,1738829446328,-154.0,0.00014519,2]
[351889064,1738829446338,-154.0,0.00014519,2]
[351889066,1738829446349,-500.0,0.0001452,2]
[351889069,1738829446359,-500.0,0.0001452,2]
[351889070,1738829446369,-615.59,0.0001452,2]
[351889072,1738829446379,-500.0,0.0001452,2]
[351889074,1738829446389,-500.0,0.0001452,2]
[351889076,1738829446398,-500.0,0.0001452,2]
[351889078,1738829446412,-500.0,0.0001452,2]
[351889080,1738829446422,-336.35,0.0001452,2]
[351889082,1738829446431,-268.19691388,0.0001452,2]
[351889084,1738829446441,-1208.91,0.0001452,2]
[351889086,1738829446452,-1176.36,0.0001452,2]
[351889088,1738829446462,-500.0,0.0001452,2]
[351889090,1738829446471,-657.32,0.0001452,2]
[351889092,1738829446481,-500.0,0.0001452,2]
[351889094,1738829446491,-500.0,0.0001452,2]
[351889096,1738829446501,-500.0,0.0001452,2]
[351889097,1738829446510,-1439.29,0.0001452,2]
[351889099,1738829446519,-894.98,0.0001452,2]
[351889100,1738829446527,-188.202912,0.0001452,2]
[351889101,1738829446536,-500.0,0.0001452,2]
[351889102,1738829446546,-292.99854938,0.0001452,2]
[351889103,1738829446555,-500.0,0.0001452,2]
[351889104,1738829446563,-1475.98,0.0001452,2]
[351889105,1738829446572,-500.0,0.0001452,2]
[351889106,1738829446582,-624.13,0.0001452,2]
[351889107,1738829446591,-500.0,0.0001452,2]
[351889108,1738829446600,-500.0,0.0001452,2]
[351889109,1738829446609,-500.0,0.0001452,2]
[351889110,1738829446618,-500.0,0.0001452,2]
[351889111,1738829446627,-1008.94,0.0001452,2]
[351889112,1738829446636,-500.0,0.0001452,2]
[351889113,1738829446644,-582.69,0.0001452,2]
[351889114,1738829446653,-642.11,0.0001452,2]
[351889115,1738829446665,-615.14,0.0001452,2]
[351889116,1738829446674,-250.258193,0.0001452,2]
[351889118,1738829446684,-500.0,0.0001452,2]
[351889120,1738829446693,-500.0,0.0001452,2]
[351889122,1738829446703,-500.0,0.0001452,2]
[351889124,1738829446713,-151.0,0.0001452,2]
[351889126,1738829446723,-506.0,0.0001452,2]
[351889128,1738829446732,-500.0,0.0001452,2]
[351889130,1738829446742,-40396.99,0.0001452,2]
[351889132,1738829446752,-500.0,0.0001452,2]
[351889134,1738829446761,-500.0,0.0001452,2]
[351889137,1738829446772,-500.0,0.0001452,2]
[351889138,1738829446781,-816.22,0.0001452,2]
[351889140,1738829446791,-2104.2,0.0001452,2]
[351889142,1738829446802,-1366.82,0.0001452,2]
[351889144,1738829446812,-500.0,0.0001452,2]
[351889146,1738829446823,-151.0,0.0001452,2]
[351889148,1738829446833,-884.94,0.0001452,2]
[351889150,1738829446843,-151.0,0.0001452,2]
[351889152,1738829446852,-1810.54,0.0001452,2]
[351889154,1738829446862,-151.0,0.0001452,2]
[351889156,1738829446872,-739.75,0.0001452,2]
[351889158,1738829446882,-13594.38,0.0001452,2]
[351889160,1738829446892,-500.0,0.0001452,2]
[351889162,1738829446902,-748.51,0.0001452,2]
[351889164,1738829446915,-4728.87,0.0001452,2]
[351889166,1738829446926,-500.0,0.0001452,2]
[351889168,1738829446935,-536.38,0.0001452,2]
[351889170,1738829446946,-2020.44,0.0001452,2]
[351889172,1738829446955,-1108.58,0.0001452,2]
[351889174,1738829446965,-1982.95,0.0001452,2]
[351889176,1738829446975,-500.0,0.0001452,2]
[351889178,1738829446985,-1078.49,0.0001452,2]
[351889180,1738829446995,-500.0,0.0001452,2]
[351889182,1738829447004,-151.0,0.0001452,2]
[351889184,1738829447013,-500.0,0.0001452,2]
[351889186,1738829447024,-500.0,0.0001452,2]
[351889188,1738829447034,-151.0,0.0001452,2]
[351889190,1738829447044,-849.11,0.0001452,2]
[351889192,1738829447054,-433.51019957,0.0001452,2]
[351889194,1738829447064,-151.0,0.0001452,2]
[351889196,1738829447073,-500.0,0.0001452,2]
[351889198,1738829447083,-151.0,0.0001452,2]
[351889200,1738829447093,-639.73,0.0001452,2]
[351889202,1738829447101,-151.0,0.0001452,2]
[351889204,1738829447111,-1559.78,0.0001452,2]
[351889206,1738829447120,-500.0,0.0001452,2]
[351889208,1738829447129,-151.0,0.0001452,2]
[351889210,1738829447138,-500.0,0.0001452,2]
[351889212,1738829447148,-500.0,0.0001452,2]
[351889214,1738829447160,-500.0,0.0001452,2]
[351889216,1738829447170,-518.24,0.0001452,2]
[351889218,1738829447179,-2119.09,0.0001452,2]
[351889220,1738829447188,-1245.44,0.0001452,2]
[351889222,1738829447197,-2895.79,0.0001452,2]
[351889224,1738829447206,-500.0,0.0001452,2]
[351889226,1738829447216,-151.0,0.0001452,2]
[351889228,1738829447225,-502.7,0.0001452,2]
[351889229,1738829447234,-500.0,0.0001452,2]
[351889231,1738829447243,-1591.18,0.0001452,2]
[351889233,1738829447252,-500.0,0.0001452,2]
[351889235,1738829447261,-1417.8,0.0001452,2]
[351889237,1738829447271,-674.38,0.0001452,2]
[351889239,1738829447280,-9503.47,0.0001452,2]
[351889241,1738829447290,-3725.46,0.0001452,2]
[351889243,1738829447300,-500.0,0.0001452,2]
[351889245,1738829447310,-500.0,0.0001452,2]
[351889247,1738829447319,-674.74,0.0001452,2]
[351889249,1738829447329,-584.73,0.0001452,2]
[351889251,1738829447338,-3051.02,0.0001452,2]
[351889253,1738829447348,-1527.87,0.0001452,2]
[351889255,1738829447358,-199.453916,0.0001452,2]
[351889257,1738829447369,-151.0,0.0001452,2]
[351889260,1738829447379,-3039.69,0.0001452,2]
[351889261,1738829447389,-199.453916,0.0001452,2]
[351889264,1738829447399,-151.0,0.0001452,2]
[351889265,1738829447414,-923.1,0.0001452,2]
[351889268,1738829447425,-727.07,0.0001452,2]
[351889270,1738829447435,-1375.37,0.0001452,2]
[351889271,1738829447445,-1655.27,0.0001452,2]
[351889273,1738829447455,-500.0,0.0001452,2]
[351889276,1738829447465,-610.41398518,0.0001452,2]
[351889277,1738829447475,-1331.89,0.0001452,2]
[351889279,1738829447488,-3392.67,0.0001452,2]
[351889281,1738829447498,-211.40058636,0.0001452,2]
[351889283,1738829447506,-500.0,0.0001452,2]
[351889285,1738829447516,-2586.13,0.0001452,2]
[351889287,1738829447525,-500.0,0.0001452,2]
[351889289,1738829447534,-525.71,0.0001452,2]
[351889291,1738829447544,-500.0,0.0001452,2]
[351889293,1738829447553,-754.85,0.0001452,2]
[351889295,1738829447563,-3468.24,0.0001452,2]
[351889297,1738829447572,-500.0,0.0001452,2]
[351889299,1738829447580,-17554.15,0.0001452,2]
[351889301,1738829447589,-500.0,0.0001452,2]
[351889303,1738829447598,-576.67,0.0001452,2]
[351889305,1738829447608,-1380.51,0.0001452,2]
[351889307,1738829447618,-633.08,0.0001452,2]
[351889309,1738829447628,-1805.74,0.0001452,2]
[351889311,1738829447637,-500.0,0.0001452,2]
[351889313,1738829447647,-500.0,0.0001452,2]
[351889314,1738829447656,-1125.48,0.0001452,2]
[351889316,1738829447666,-160.0,0.00014534,5]
[351889319,1738829447676,-160.0,0.00014534,5]
[351889320,1738829447686,-500.0,0.00014576,2]
[351889322,1738829447695,-162.22278396,0.00014656,2]
[351889324,1738829447706,-500.0,0.00014657,2]
[351889326,1738829447716,-500.0,0.00014657,2]
[351889329,1738829447727,-615.59,0.00014657,2]
[351889330,1738829447736,-500.0,0.00014657,2]
[351889332,1738829447745,-500.0,0.00014657,2]
[351889334,1738829447755,-644.26935706,0.00014657,2]
[351889336,1738829447765,-500.0,0.00014657,2]
[351889338,1738829447775,-1208.91,0.00014657,2]
[351889340,1738829447784,-1176.36,0.00014657,2]
[351889342,1738829447794,-500.0,0.00014657,2]
[351889344,1738829447804,-657.32,0.00014657,2]
[351889346,1738829447814,-500.0,0.00014657,2]
[351889348,1738829447824,-500.0,0.00014657,2]
[351889350,1738829447834,-500.0,0.00014657,2]
[351889352,1738829447843,-1439.29,0.00014657,2]
[351889354,1738829447854,-894.98,0.00014657,2]
[351889356,1738829447864,-500.0,0.00014657,2]
[351889358,1738829447875,-500.0,0.00014657,2]
[351889360,1738829447885,-1475.98,0.00014657,2]
[351889362,1738829447894,-500.0,0.00014657,2]
[351889364,1738829447906,-624.13,0.00014657,2]
[351889366,1738829447916,-500.0,0.00014657,2]
[351889368,1738829447926,-500.0,0.00014657,2]
[351889370,1738829447937,-500.0,0.00014657,2]
[351889372,1738829447946,-500.0,0.00014657,2]
[351889374,1738829447955,-1008.94,0.00014657,2]
[351889376,1738829447966,-500.0,0.00014657,2]
[351889378,1738829447977,-582.69,0.00014657,2]
[351889380,1738829447987,-642.11,0.00014657,2]
[351889382,1738829447997,-615.14,0.00014657,2]
[351889383,1738829448006,-500.0,0.00014657,2]
[351889385,1738829448015,-344.18548026,0.00014657,2]
[351889387,1738829448025,-500.0,0.00014657,2]
[351889389,1738829448035,-506.0,0.00014657,2]
[351889391,1738829448044,-500.0,0.00014657,2]
[351889393,1738829448055,-40396.99,0.00014657,2]
[351889395,1738829448064,-172.92019654,0.00014657,2]
[351889397,1738829448074,-500.0,0.00014657,2]
[351889399,1738829448084,-500.0,0.00014657,2]
[351889401,1738829448094,-816.22,0.00014657,2]
[351889403,1738829448104,-2104.2,0.00014657,2]
[351889405,1738829448114,-1366.82,0.00014657,2]
[351889419,1738829448254,-500.0,0.00014657,2]
[351889422,1738829448285,-884.94,0.00014657,2]
[351889424,1738829448296,-1810.54,0.00014657,2]